fUSD/lending_fUSD_20250223
["ID","MTS","AMOUNT","RATE_DAILY","PERIOD"]
[354143553,1740283841273,-505.78624486,0.0001982,3]
[354143554,1740283841283,-505.5973512,0.0001982,3]
[354143555,1740283841292,-500.0,0.0001982,3]
[354143556,1740283841302,-500.0,0.0001982,3]
[354143557,1740283841314,-500.0,0.0001982,3]
[354143558,1740283841323,-512.35669075,0.0001982,3]
[354143559,1740283841333,-500.0,0.0001982,3]
[354143560,1740283841342,-506.96295975,0.0001982,3]
[354143561,1740283841352,-500.0,0.0001982,3]
[354143562,1740283841362,-509.14093025,0.0001982,3]
[354143563,1740283841372,-500.0,0.0001982,3]
[354143564,1740283841382,-500.0,0.0001982,3]
[354143565,1740283841392,-503.6986975,0.0001982,3]
[354143566,1740283841401,-530.51740972,0.0001982,3]
[354143567,1740283841411,-500.0,0.0001982,3]
[354143568,1740283841420,-500.0,0.0001982,3]
[354143569,1740283841430,-500.0,0.0001982,3]
[354143570,1740283841439,-500.0,0.0001982,3]
[354143571,1740283841449,-500.0,0.0001982,3]
[354143572,1740283841458,-508.14531654,0.0001982,3]
[354143573,1740283841468,-569.64,0.0001982,3]
[354143574,1740283841477,-500.0,0.0001982,3]
[354143575,1740283841487,-501.48316204,0.0001982,3]
[354143576,1740283841497,-500.0,0.0001982,3]
[354143577,1740283841506,-500.0,0.0001982,3]
[354143578,1740283841516,-502.20094548,0.0001982,3]
[354143579,1740283841526,-500.0,0.0001982,3]
[354143580,1740283841535,-500.0,0.0001982,3]
[354143581,1740283841544,-500.0,0.0001982,3]
[354143582,1740283841553,-230.36763631,0.0001982,3]
[354143583,1740283841562,-500.0,0.0001982,3]
[354143584,1740283841572,-500.0,0.0001982,3]
[354143585,1740283841581,-500.0,0.0001982,3]
[354143586,1740283841591,-610.07237692,0.0001982,3]
[354143587,1740283841600,-502.34852722,0.0001982,3]
[354143588,1740283841609,-500.0,0.0001982,3]
[354143589,1740283841618,-591.96,0.0001982,3]
[354143590,1740283841628,-500.0,0.0001982,3]
[354143591,1740283841637,-506.11824243,0.0001982,3]
[354143592,1740283841647,-500.0,0.0001982,3]
[354143593,1740283841658,-500.0,0.0001982,3]
[354143594,1740283841668,-597.23503107,0.0001982,3]
[354143595,1740283841678,-500.0,0.0001982,3]
[354143596,1740283841687,-500.0,0.0001982,3]
[354143597,1740283841696,-501.92915724,0.0001982,3]
[354143598,1740283841707,-501.92243784,0.0001982,3]
[354143599,1740283841716,-340.51742294,0.0001982,3]
[354143600,1740283841725,-504.22230651,0.0001982,3]
[354143601,1740283841736,-502.7744458,0.0001982,3]
[354143602,1740283841746,-500.0,0.0001982,3]
[354143603,1740283841756,-504.31401691,0.0001982,3]
[354143604,1740283841765,-374.84104468,0.0001982,3]
[354143605,1740283841775,-508.69562675,0.0001982,3]
[354143606,1740283841784,-501.39905376,0.0001982,3]
[354143607,1740283841793,-500.0,0.0001982,3]
[354143608,1740283841802,-511.70973773,0.0001982,3]
[354143609,1740283841812,-619.33,0.0001982,3]
[354143610,1740283841822,-502.85220445,0.0001982,3]
[354143611,1740283841831,-500.0,0.0001982,3]
[354143612,1740283841841,-500.89446029,0.0001982,3]
[354143613,1740283841850,-501.48837014,0.0001982,3]
[354143614,1740283841860,-544.66,0.0001982,3]
[354143615,1740283841869,-500.0,0.0001982,3]
[354143616,1740283841878,-500.0,0.0001982,3]
[354143617,1740283841888,-500.0,0.0001982,3]
[354143618,1740283841897,-500.0,0.0001982,3]
[354143619,1740283841907,-500.0,0.0001982,3]
[354143620,1740283841917,-500.55682449,0.0001982,3]
[354143621,1740283841926,-506.67910685,0.0001982,3]
[354143622,1740283841935,-504.50337073,0.0001982,3]
[354143623,1740283841945,-500.0,0.0001982,3]
[354143624,1740283841954,-503.49823563,0.0001982,3]
[354143625,1740283841963,-500.56006269,0.0001982,3]
[354143626,1740283841973,-504.14950634,0.0001982,3]
[354143627,1740283841982,-500.0,0.0001982,3]
[354143628,1740283841991,-500.0,0.0001982,3]
[354143629,1740283842000,-500.0,0.0001982,3]
[354143630,1740283842009,-500.0,0.0001982,3]
[354143631,1740283842018,-500.0,0.0001982,3]
[354143632,1740283842028,-504.40280054,0.0001982,3]
[354143633,1740283842037,-506.45225191,0.0001982,3]
[354143634,1740283842047,-523.49676011,0.0001982,3]
[354143635,1740283842056,-500.0,0.0001982,3]
[354143636,1740283842065,-501.24485269,0.0001982,3]
[354143637,1740283842074,-500.0,0.0001982,3]
[354143638,1740283842083,-500.0,0.0001982,3]
[354143639,1740283842093,-500.0,0.0001982,3]
[354143640,1740283842104,-507.35728085,0.0001982,3]
[354143641,1740283842113,-503.67961934,0.0001982,3]
[354143642,1740283842123,-500.80904946,0.0001982,3]
[354143643,1740283842132,-311.00262159,0.0001982,3]
[354143644,1740283842141,-500.0,0.0001982,3]
[354143645,1740283842150,-504.66395455,0.0001982,3]
[354143646,1740283842158,-504.3742777,0.0001982,3]
[354143647,1740283842167,-500.0,0.0001982,3]
[354143648,1740283842176,-506.65919582,0.0001982,3]
[354143649,1740283842186,-500.0,0.0001982,3]
[354143650,1740283842195,-502.57296533,0.0001982,3]
[354143651,1740283842204,-505.0516194,0.0001982,3]
[354143652,1740283842213,-500.0,0.0001982,3]
[354143653,1740283842222,-500.0,0.0001982,3]
[354143654,1740283842232,-526.57759617,0.0001982,3]
[354143655,1740283842241,-500.0,0.0001982,3]
[354143656,1740283842251,-507.71660844,0.0001982,3]
[354143657,1740283842260,-503.18340724,0.0001982,3]
[354143659,1740283842268,-500.0,0.0001982,3]
[354143660,1740283842277,-500.0,0.0001982,3]
[354143663,1740283842287,-500.0,0.0001982,3]
[354143664,1740283842298,-504.57899964,0.0001982,3]
[354143665,1740283842308,-500.0,0.0001982,3]
[354143666,1740283842317,-500.0,0.0001982,3]
[354143667,1740283842326,-502.69119417,0.0001982,3]
[354143668,1740283842335,-500.0,0.0001982,3]
[354143669,1740283842345,-500.0,0.0001982,3]
[354143670,1740283842355,-508.90486306,0.0001982,3]
[354143671,1740283842366,-514.19931291,0.0001982,3]
[354143672,1740283842375,-503.47157898,0.0001982,3]
[354143673,1740283842385,-500.0,0.0001982,3]
[354143674,1740283842394,-501.99750019,0.0001982,3]
[354143676,1740283842403,-503.78830571,0.0001982,3]
[354143677,1740283842412,-605.87733636,0.0001982,3]
[354143678,1740283842422,-613.6264334,0.0001982,3]
[354143679,1740283842431,-500.0,0.0001982,3]
[354143681,1740283842440,-513.21590407,0.0001982,3]
[354143682,1740283842450,-503.32445427,0.0001982,3]
[354143683,1740283842459,-500.0,0.0001982,3]
[354143684,1740283842468,-501.17877294,0.0001982,3]
[354143685,1740283842477,-501.65474489,0.0001982,3]
[354143686,1740283842485,-501.08118459,0.0001982,3]
[354143687,1740283842495,-504.54762543,0.0001982,3]
[354143688,1740283842504,-500.0,0.0001982,3]
[354143689,1740283842513,-507.49297227,0.0001982,3]
[354143690,1740283842523,-500.0,0.0001982,3]
[354143691,1740283842532,-500.76471683,0.0001982,3]
[354143692,1740283842541,-509.12206264,0.0001982,3]
[354143693,1740283842550,-150.0,0.00019824,2]
[354143694,1740283842559,-150.0,0.00019827,2]
[354143695,1740283842568,-150.0,0.00019827,2]
[354143696,1740283842578,-211.42015774,0.0001983,2]
[354143697,1740283842590,-150.0,0.00019834,2]
[354143698,1740283842602,-150.0,0.00019835,2]
[354143699,1740283842615,-1000.0,0.00019837,2]
[354143700,1740283842626,-1000.0,0.00019839,2]
[354143701,1740283842638,-150.0,0.00019839,2]
[354143702,1740283842649,-1013.87168152,0.0001985,2]
[354143703,1740283842659,-150.0,0.00019854,2]
[354143704,1740283842671,-1304.7446383,0.00019859,2]
[354143705,1740283842683,-4279.4330755,0.00019859,2]
[354143706,1740283842694,-7338.9510533,0.00019859,2]
[354143707,1740283842705,-642.0,0.0001986,2]
[354143708,1740283842717,-1952.65792,0.0001986,2]
[354143709,1740283842728,-500.0,0.00019869,3]
[354143710,1740283842742,-503.54475188,0.00019869,3]
[354143711,1740283842753,-500.0,0.00019869,3]
[354143712,1740283842765,-500.0,0.00019869,3]
[354143713,1740283842776,-500.0,0.00019869,3]
[354143714,1740283842788,-500.0,0.00019869,3]
[354143715,1740283842798,-500.0,0.00019869,3]
[354143716,1740283842808,-500.0,0.00019869,3]
[354143717,1740283842818,-500.0,0.00019869,3]
[354143718,1740283842831,-500.0,0.00019869,3]
[354143719,1740283842842,-374.38425849,0.00019869,3]
[354143720,1740283842854,-500.0,0.00019869,3]
[354143722,1740283842865,-500.0,0.00019869,3]
[354143725,1740283842876,-500.0,0.00019869,3]
[354143727,1740283842888,-500.0,0.00019869,3]
[354143729,1740283842900,-500.0,0.00019869,3]
[354143731,1740283842910,-500.0,0.00019869,3]
[354143734,1740283842922,-500.0,0.00019869,3]
[354143736,1740283842933,-500.0,0.00019869,3]
[354143738,1740283842944,-500.0,0.00019869,3]
[354143740,1740283842955,-1000.0,0.00019869,2]
[354143743,1740283842968,-608373.15195224,0.0001987,7]
[354143746,1740283842979,-3007.27592549,0.0001987,2]
[354143749,1740283842990,-300.0,0.0001987,2]
[354143751,1740283843001,-300.0,0.0001987,2]
[354143754,1740283843012,-250.0,0.0001987,2]
[354143757,1740283843023,-250.0,0.0001987,2]
[354143760,1740283843033,-300.0,0.0001987,2]
[354143764,1740283843044,-200.0,0.0001987,2]
[354143767,1740283843056,-302.50833531,0.00019873,2]
[354143770,1740283843068,-521.86963551,0.00019873,2]
[354143772,1740283843080,-500.37830999,0.00019873,2]
[354143775,1740283843091,-1304.7446383,0.00019876,2]
[354143777,1740283843101,-1304.7446383,0.00019876,2]
[354143779,1740283843112,-1304.7446383,0.00019876,2]
[354143781,1740283843123,-1304.7446383,0.00019876,2]
[354143783,1740283843133,-1304.7446383,0.00019876,2]
[354143785,1740283843143,-3454.1296693,0.00019876,2]
[354143787,1740283843153,-2628.8262631,0.00019876,2]
[354143790,1740283843164,-1803.5228569,0.00019876,2]
[354143792,1740283843178,-978.2194508,0.00019876,2]
[354143794,1740283843190,-152.9160446,0.00019876,2]
[354143796,1740283843201,-5923.6090687,0.00019876,2]
[354143798,1740283843210,-4508.2670841,0.00019876,2]
[354143801,1740283843220,-3092.9250995,0.00019876,2]
[354143803,1740283843231,-1677.5831149,0.00019876,2]
[354143805,1740283843241,-262.2411303,0.00019876,2]
[354143807,1740283843252,-153.76541733,0.00019877,2]
[354143809,1740283843264,-324.09391,0.00019888,7]
[354143811,1740283843275,-300.0,0.00019889,2]
[354143814,1740283843287,-300.0,0.00019889,2]
[354143816,1740283843300,-1307.50270805,0.00019889,3]
[354143818,1740283843311,-150.0,0.0001989,4]
[354143820,1740283843321,-150.0,0.0001989,4]
[354143822,1740283843331,-150.0,0.0001989,4]
[354143824,1740283843342,-150.0,0.0001989,4]
[354143826,1740283843352,-300.0,0.00019899,2]
[354143828,1740283843362,-500.0,0.00019899,3]
[354143830,1740283843372,-503.12175583,0.00019899,3]
[354143832,1740283843383,-500.0,0.00019899,3]
[354143835,1740283843394,-500.0,0.00019899,3]
[354143837,1740283843406,-500.0,0.00019899,3]
[354143839,1740283843417,-306.61480414,0.00019899,2]
[354143841,1740283843427,-1347.66,0.00019899,2]
[354143843,1740283843438,-2131.43056076,0.000199,3]
[354143845,1740283843448,-2934.44262184,0.000199,7]
[354143847,1740283843459,-204256.03974345,0.000199,7]
[354143849,1740283843470,-40000.000001,0.000199,2]
[354143851,1740283843480,-4703.34596876,0.000199,3]
[354143854,1740283843491,-165.04806518,0.000199,2]
[354143856,1740283843503,-1000.0,0.000199,2]
[354143858,1740283843514,-12772.17289111,0.000199,2]
[354143860,1740283843525,-550.82988726,0.000199,2]
[354143862,1740283843536,-179.3636606,0.000199,2]
[354143864,1740283843547,-166.61180069,0.000199,2]
[354143867,1740283843557,-424.4389854,0.000199,2]
[354143869,1740283843568,-424.4389854,0.000199,2]
[354143871,1740283843580,-424.4389854,0.000199,2]
[354143873,1740283843591,-424.4389854,0.000199,2]
[354143875,1740283843604,-424.4389854,0.000199,2]
[354143878,1740283843614,-424.4389854,0.000199,2]
[354143880,1740283843626,-424.4389854,0.000199,2]
[354143882,1740283843637,-424.4389854,0.000199,2]
[354143884,1740283843648,-424.4389854,0.000199,2]
[354143886,1740283843660,-424.4389854,0.000199,2]
[354143888,1740283843671,-424.4389854,0.000199,2]
[354143890,1740283843681,-424.4389854,0.000199,2]
[354143892,1740283843692,-424.4389854,0.000199,2]
[354143895,1740283843703,-424.4389854,0.000199,2]
[354143897,1740283843714,-424.4389854,0.000199,2]
[354143899,1740283843725,-424.4389854,0.000199,2]
[354143901,1740283843736,-424.4389854,0.000199,2]
[354143903,1740283843748,-424.4389854,0.000199,2]
[354143905,1740283843759,-424.4389854,0.000199,2]
[354143907,1740283843770,-424.43,0.000199,2]
[354143909,1740283843782,-440.24434956,0.000199,2]
[354143912,1740283843793,-440.24434956,0.000199,2]
[354143914,1740283843804,-440.24434956,0.000199,2]
[354143916,1740283843815,-440.24434956,0.000199,2]
[354143918,1740283843827,-440.24434956,0.000199,2]
[354143920,1740283843838,-440.24434956,0.000199,2]
[354143922,1740283843848,-440.24434956,0.000199,2]
[354143924,1740283843859,-440.24434956,0.000199,2]
[354143927,1740283843870,-440.24434956,0.000199,2]
[354143929,1740283843881,-440.24434956,0.000199,2]
[354143931,1740283843891,-440.24434956,0.000199,2]
[354143933,1740283843901,-440.24434956,0.000199,2]
[354143935,1740283843912,-440.24434956,0.000199,2]
[354143937,1740283843922,-440.24434956,0.000199,2]
[354143939,1740283843933,-440.24434956,0.000199,2]
[354143941,1740283843943,-440.24434956,0.000199,2]
[354143943,1740283843954,-440.24434956,0.000199,2]
[354143945,1740283843965,-440.24434956,0.000199,2]
[354143947,1740283843975,-440.24434956,0.000199,2]
[354143950,1740283843987,-440.24,0.000199,2]
[354143952,1740283843998,-557.99713717,0.000199,2]
[354143954,1740283844009,-557.99713717,0.000199,2]
[354143956,1740283844020,-557.99713717,0.000199,2]
[354143958,1740283844030,-557.99713717,0.000199,2]
[354143960,1740283844041,-557.99713717,0.000199,2]
[354143962,1740283844052,-557.99713717,0.000199,2]
[354143964,1740283844062,-557.99713717,0.000199,2]
[354143967,1740283844073,-557.99713717,0.000199,2]
[354143969,1740283844084,-557.99713717,0.000199,2]
[354143971,1740283844095,-557.99713717,0.000199,2]
[354143973,1740283844106,-557.99713717,0.000199,2]
[354143975,1740283844117,-557.99713717,0.000199,2]
[354143977,1740283844128,-557.99713717,0.000199,2]
[354143979,1740283844139,-557.99713717,0.000199,2]
[354143982,1740283844150,-557.99713717,0.000199,2]
[354143984,1740283844162,-557.99713717,0.000199,2]
[354143986,1740283844173,-557.99713717,0.000199,2]
[354143988,1740283844186,-557.99713717,0.000199,2]
[354143990,1740283844196,-557.99713717,0.000199,2]
[354143992,1740283844207,-557.99,0.000199,2]
[354143994,1740283844217,-204.88327981,0.000199,2]
[354143996,1740283844226,-500.0,0.00019902,3]
[354143998,1740283844237,-500.0,0.00019902,3]
[354144000,1740283844246,-2505.75,0.00019905,2]
[354144002,1740283844255,-300.0,0.0001992,2]
[354144004,1740283844264,-500.0,0.00019929,3]
[354144006,1740283844273,-500.0,0.00019929,3]
[354144008,1740283844283,-532.73558478,0.00019929,3]
[354144010,1740283844293,-500.0,0.00019929,3]
[354144012,1740283844303,-500.0,0.00019929,3]
[354144014,1740283844314,-202.64830243,0.00019929,3]
[354144016,1740283844323,-500.0,0.00019929,3]
[354144018,1740283844333,-556752.57519386,0.0001993,3]
[354144023,1740283844364,-517.59043303,0.0001993,3]
[354144025,1740283844381,-400.86620647,0.0001993,3]
[354144038,1740283844587,-4023.04648129,0.0001993,3]
[354144058,1740283844778,-502.02532646,0.00019025,2]
[354144061,1740283844788,-500.0,0.00019025,2]
[354144062,1740283844798,-444.4223884,0.0001979,2]
[354144064,1740283844807,-510.18390105,0.0001982,3]
[354144066,1740283844818,-504.98114009,0.0001982,3]
[354144068,1740283844828,-1036.75290423,0.0001993,3]
[354144069,1740283844852,-627.34078749,0.0001993,3]
[354144070,1740283845039,-500.0,0.0001982,3]
[354144071,1740283845051,-43.67994737,0.0001982,3]
[354144072,1740283845061,-508.54966262,0.0001982,3]
[354144073,1740283845070,-123.19534501,0.0001982,3]
[354144074,1740283845087,-377.69546265,0.0001982,3]
[354144075,1740283845097,-507.08638617,0.0001982,3]
[354144076,1740283845107,-503.76595063,0.0001982,3]
[354144077,1740283845117,-303.56496652,0.000199,3]
[354144078,1740283845126,-89898.65313403,0.0001993,3]
[354144079,1740283845141,-332.2315795,0.0001993,3]
[354144080,1740283845152,-261084.60005173,0.0001993,3]
[354144081,1740283845164,-688.7483796,0.0001993,3]
[354144082,1740283845175,-18057.83928173,0.0001993,3]
[354144083,1740283845186,-22873.4975683,0.0001993,3]
[354144084,1740283845197,-1443.64072596,0.0001993,3]
[354144085,1740283845209,-1004.25928033,0.0001993,3]
[354144086,1740283845224,-3011.29539032,0.0001993,3]
[354144087,1740283845235,-7305.0,0.0001993,3]
[354144088,1740283845410,-500.0,0.0001982,3]
[354144089,1740283845420,-500.0,0.0001982,3]
[354144090,1740283845429,-18808.08834,0.0001993,3]
[354144091,1740283845520,-2655.68939049,0.0001993,3]
[354144092,1740283845530,-2988.32770187,0.0001993,3]
[354144093,1740283845627,-355.88,0.0001993,3]
[354144094,1740283845679,-2711.13608082,0.0001993,3]
[354144095,1740283846990,322.92,8.767e-05,2]
[354144097,1740284720151,4758.21538004,9e-05,2]
[354144114,1740285031638,-440.12578358,9.828e-05,2]
[354144116,1740285031647,-267.30684946,0.0001,2]
[354144119,1740285031746,-426.36644233,0.0001,2]
[354144120,1740285031757,-1465669.68545654,0.0001,2]
[354144121,1740285031769,-357.52294858,0.0001,2]
[354144122,1740285031859,-82325.30164034,0.0001,2]
[354144123,1740285031868,-153874.95852899,0.0001,2]
[354144124,1740285031916,-3303.11794352,0.0001,2]
[354144125,1740285031973,-277.224,0.0001,2]
[354144163,1740285039800,-424.36076718,0.0001,2]
[354144164,1740285040017,-2652.6828301,0.0001,2]
[354144177,1740285042752,-776.16,0.0001,2]
[354144180,1740285045874,-552.21414841,0.0001,2]
[354144183,1740285096099,178.17,8.767e-05,2]
[354144185,1740286105082,471.4,8.219e-05,2]
[354144190,1740286231859,-222.6732,9.89e-05,2]
[354144191,1740286231868,-150.0,9.973e-05,2]
[354144192,1740286231877,-871.69699934,9.98e-05,2]
[354144193,1740286231966,-1500.0,9.98e-05,2]
[354144194,1740286232076,-1312.86736666,9.98e-05,2]
[354144204,1740286237817,-677.2500001,9.98e-05,2]
[354144656,1740286243055,-1000.0,9.88e-05,2]
[354144658,1740286243064,-9707.68168422,9.98e-05,2]
[354144872,1740286245885,-671.66533043,9.98e-05,2]
[354144873,1740286246051,-205274.92292851,9.98e-05,2]
[354144877,1740286380850,163.84,8.767e-05,2]
[354144878,1740286793139,150.85,9.492e-05,2]
[354144879,1740287041662,1374.72,8.978e-05,2]
[354144880,1740287079349,151.33,8.973e-05,2]
[354144881,1740287244854,166.34,8.974e-05,2]
[354144884,1740287325369,200.0,9.006e-05,2]
[354144885,1740287326204,477.13,8.219e-05,2]
[354144897,1740287432122,-150.85,9.549e-05,2]
[354144898,1740287432131,-150.85,9.606e-05,2]
[354144899,1740287432140,-150.85,9.663e-05,2]
[354144900,1740287432149,-347.44997,9.671e-05,2]
[354144901,1740287432160,-1671.13242083,9.671e-05,2]
[354144902,1740287432172,-641.93800917,9.671e-05,2]
[354144903,1740287432181,-222.16748556,9.72e-05,2]
[354144904,1740287432193,-642.55783628,9.72e-05,2]
[354144905,1740287432202,-150.85,9.72e-05,2]
[354144906,1740287432211,-1012.11,9.722e-05,2]
[354144907,1740287432220,-300.0,9.77e-05,2]
[354144908,1740287432228,-212.58776089,9.771e-05,2]
[354144909,1740287432237,-44263.72885242,9.771e-05,2]
[354144910,1740287432245,-150.85,9.777e-05,2]
[354144911,1740287432254,-531.06851035,9.777e-05,2]
[354144912,1740287432263,-150.0,9.78e-05,2]
[354144913,1740287432277,-2643.1379,9.78e-05,2]
[354144914,1740287432286,-23890.0,9.781e-05,2]
[354144915,1740287432296,-212.58776089,9.79e-05,2]
[354144916,1740287432304,-408.15,9.79e-05,2]
[354144917,1740287432313,-527.3097,9.8e-05,2]
[354144918,1740287432322,-11126.836,9.8e-05,2]
[354144919,1740287432331,-1708.4371,9.8e-05,2]
[354144920,1740287432340,-150.85,9.834e-05,2]
[354144921,1740287432349,-17564.5125,9.88e-05,2]
[354144922,1740287432358,-16130.8239,9.88e-05,2]
[354144923,1740287432367,-538.9305,9.88e-05,2]
[354144924,1740287432376,-150.85,9.891e-05,2]
[354144925,1740287432385,-112729.167,9.9e-05,2]
[354144926,1740287432394,-3221.842,9.9e-05,2]
[354144927,1740287432403,-150.85,9.948e-05,2]
[354144928,1740287432412,-500.0,9.973e-05,2]
[354144929,1740287432422,-200.0,9.98e-05,2]
[354144930,1740287432430,-614.26833776,9.999e-05,2]
[354144931,1740287432439,-500.0,9.999e-05,2]
[354144932,1740287432448,-500.0,9.999e-05,2]
[354144933,1740287432457,-500.0,9.999e-05,2]
[354144934,1740287432466,-548.05475944,9.999e-05,2]
[354144935,1740287432476,-294.97633452,9.999e-05,2]
[354144936,1740287432484,-510.24669669,9.999e-05,2]
[354144937,1740287432494,-228693.39434783,0.0001,2]
[354144938,1740287432503,-10639.06727586,0.0001,2]
[354144939,1740287432512,-395.62216548,0.0001,2]
[354144941,1740287432521,-550.0,0.0001,2]
[354144943,1740287432530,-2000.0,0.0001,2]
[354144945,1740287432539,-200.0,0.0001,2]
[354144947,1740287432548,-1850.71973,0.0001,2]
[354144949,1740287432558,-583.006,0.00010005,2]
[354144951,1740287432567,-583.006,0.00010005,2]
[354144953,1740287432576,-583.006,0.00010005,2]
[354144955,1740287432585,-583.006,0.00010005,2]
[354144957,1740287432594,-583.006,0.00010005,2]
[354144959,1740287432604,-583.006,0.00010005,2]
[354144961,1740287432613,-583.006,0.00010005,2]
[354144963,1740287432622,-583.006,0.00010005,2]
[354144965,1740287432631,-583.006,0.00010005,2]
[354144967,1740287432640,-583.006,0.00010005,2]
[354144969,1740287432649,-150.85,0.00010005,2]
[354144971,1740287432658,-1000.0,0.00010034,2]
[354144973,1740287432667,-150.85,0.00010061,2]
[354144975,1740287432677,-250.0,0.00010073,2]
[354144977,1740287432686,-200.0,0.0001008,2]
[354144979,1740287432695,-151.33,0.00010095,2]
[354144981,1740287432704,-200.0,0.00010181,2]
[354144984,1740287432713,-341.56,0.00010187,2]
[354144987,1740287432722,-1725.0,0.000104,3]
[354144990,1740287432731,-204.99536119,0.000104,2]
[354144992,1740287432740,-477.13,0.00010424,2]
[354144994,1740287432749,-166.34,0.00010469,2]
[354144996,1740287432759,-500.0,0.00010504,2]
[354144998,1740287432768,-150.0,0.00010504,2]
[354145000,1740287432777,-150.0,0.00010504,2]
[354145002,1740287432786,-150.0,0.00010504,2]
[354145004,1740287432795,-1010.01979256,0.00010521,2]
[354145006,1740287432805,-158.03,0.00010663,2]
[354145008,1740287432815,-5551.0,0.000107,5]
[354145010,1740287432824,-420.0,0.00010747,2]
[354145012,1740287432833,-158.03,0.00010769,2]
[354145014,1740287432843,-1820.7869838,0.00010858,2]
[354145016,1740287432852,-158.03,0.00010876,2]
[354145018,1740287432861,-166.61180071,0.000109,2]
[354145020,1740287432871,-151.56461903,0.00010941,2]
[354145022,1740287432881,-165.28101263,0.00010941,2]
[354145024,1740287432890,-268.28667973,0.00010957,2]
[354145026,1740287432900,-500.0,0.00010958,2]
[354145028,1740287432909,-645.61265881,0.00010958,2]
[354145030,1740287432918,-502.12027779,0.00010958,2]
[354145031,1740287432927,-501.72993024,0.00010958,2]
[354145033,1740287432936,-500.0,0.00010958,2]
[354145034,1740287432946,-221.80123928,0.00010958,2]
[354145035,1740287432956,-500.0,0.00010958,2]
[354145036,1740287432972,-500.0,0.00010958,2]
[354145037,1740287432981,-500.0,0.00010958,2]
[354145038,1740287432990,-500.0,0.00010958,2]
[354145039,1740287432999,-252.58147801,0.00010958,2]
[354145040,1740287433012,-204.42973954,0.00010958,2]
[354145041,1740287433021,-500.0,0.00010958,2]
[354145042,1740287433029,-500.0,0.00010958,2]
[354145043,1740287433038,-501.8455688,0.00010958,2]
[354145044,1740287433047,-500.0,0.00010958,2]
[354145046,1740287433058,-502.82155315,0.00010958,2]
[354145048,1740287433068,-503.89926087,0.00010958,2]
[354145050,1740287433076,-504.01389826,0.00010958,2]
[354145052,1740287433088,-500.0,0.00010958,2]
[354145054,1740287433097,-398.29224659,0.00010958,2]
[354145056,1740287433107,-257.66001482,0.00010958,2]
[354145058,1740287433117,-500.0,0.00010958,2]
[354145060,1740287433127,-500.0,0.00010958,2]
[354145062,1740287433136,-305.91390855,0.00010958,2]
[354145064,1740287433146,-162.90016514,0.00010958,2]
[354145066,1740287433155,-500.0,0.00010958,2]
[354145068,1740287433164,-502.64460402,0.00010958,2]
[354145070,1740287433173,-500.0,0.00010958,2]
[354145072,1740287433182,-500.0,0.00010958,2]
[354145074,1740287433191,-500.0,0.00010958,2]
[354145076,1740287433201,-510.75754644,0.00010958,2]
[354145078,1740287433211,-500.0,0.00010958,2]
[354145080,1740287433220,-500.0,0.00010958,2]
[354145081,1740287433229,-500.0,0.00010958,2]
[354145083,1740287433238,-500.0,0.00010958,2]
[354145085,1740287433248,-500.0,0.00010958,2]
[354145088,1740287433258,-501.23624871,0.00010958,2]
[354145089,1740287433267,-528.70717451,0.00010958,2]
[354145092,1740287433277,-555.3766487,0.00010958,2]
[354145094,1740287433287,-500.0,0.00010958,2]
[354145095,1740287433304,-500.0,0.00010958,2]
[354145097,1740287433313,-501.86641485,0.00010958,2]
[354145099,1740287433323,-502.98571902,0.00010958,2]
[354145102,1740287433333,-500.0,0.00010958,2]
[354145103,1740287433343,-500.0,0.00010958,2]
[354145106,1740287433353,-508.20935771,0.00010958,2]
[354145108,1740287433363,-500.0,0.00010958,2]